bitfinex/quotes_SOLUSD_20250106
["timestamp","ask_amount","ask_price","bid_price","bid_amount"]
[1736152301082,9.16875374,214.72,214.65,59.66875374]
[1736152301842,2.16,214.73,214.67,9.16875374]
[1736152302311,11.32875374,214.73,214.65,50.5]
[1736152302502,11.32875374,214.73,214.67,9.16875374]
[1736152305619,2.16,214.73,214.67,9.16875374]
[1736152306584,2.16,214.73,214.68,9.16875374]
[1736152306791,9.16875374,214.77,214.71,9.16875374]
[1736152307007,9.16875374,214.79,214.73,9.16875374]
[1736152307208,11.32875374,214.8,214.73,9.16875374]
[1736152307385,9.16875374,214.79,214.72,9.16875374]
[1736152308524,9.16875374,214.78,214.71,9.16875374]
[1736152311528,9.16875374,214.78,214.67,51.19850097]
[1736152311529,9.16875374,214.75,214.69,9.16875374]
[1736152311738,2.16,214.79,214.67,9.16875374]
[1736152311739,9.16875374,214.74,214.67,9.16875374]
[1736152312028,9.16875374,214.75,214.68,9.16875374]
[1736152313738,9.16875374,214.75,214.69,9.16875374]
[1736152314730,9.16875374,214.76,214.69,9.16875374]
[1736152315522,9.16875374,214.75,214.68,9.16875374]
[1736152316808,9.16875374,214.74,214.67,9.16875374]
[1736152317017,9.16875374,214.75,214.68,9.16875374]
[1736152319145,9.16875374,214.76,214.69,9.16875374]
[1736152319567,11.636,214.85,214.71,9.16875374]
[1736152319725,9.16875374,214.76,214.69,9.16875374]
[1736152320914,9.16875374,214.74,214.66,50.5]
[1736152321241,9.16875374,214.73,214.66,59.66875374]
[1736152321649,9.16875374,214.74,214.67,9.16875374]
[1736152322438,9.16875374,214.73,214.66,59.66875374]
[1736152322619,9.16875374,214.73,214.66,50.5]
[1736152324047,9.16875374,214.73,214.65,9.16875374]
[1736152324242,9.16875374,214.73,214.66,9.16875374]
[1736152325239,2.12,214.76,214.66,9.16875374]
[1736152325450,9.16875374,214.74,214.67,9.16875374]
[1736152325637,9.16875374,214.73,214.66,9.16875374]
[1736152326632,9.16875374,214.72,214.65,9.16875374]
[1736152326831,9.16875374,214.69,214.6,12.3477981]
[1736152327022,9.16875374,214.68,214.61,9.16875374]
[1736152327624,2.12,214.69,214.58,2.30640173]
[1736152327879,2.12,214.69,214.58,1.6076]
[1736152328024,9.16875374,214.66,214.6,9.16875374]
[1736152328753,9.16875374,214.64,214.58,10.77635374]
[1736152328951,9.16875374,214.65,214.58,10.77635374]
[1736152329731,9.16875374,214.66,214.59,9.16875374]
[1736152331349,9.16875374,214.66,214.6,9.16875374]
[1736152331653,9.16875374,214.66,214.59,9.16875374]
[1736152332931,9.16875374,214.67,214.6,9.16875374]
[1736152333258,2.12,214.66,214.61,9.16875374]
[1736152333836,2.12,214.66,214.62,9.16875374]
[1736152334156,2.12,214.66,214.61,9.16875374]
[1736152334661,2.12,214.67,214.61,9.16875374]
[1736152334833,2.12,214.67,214.62,9.16875374]
[1736152335179,2.12,214.67,214.58,13.95693648]
[1736152335451,2.12,214.67,214.61,9.16875374]
[1736152337159,11.28875374,214.67,214.6,9.16875374]
[1736152337865,9.16875374,214.66,214.59,9.16875374]
[1736152338946,9.16875374,214.65,214.58,9.16875374]
[1736152339443,9.16875374,214.61,214.53,1.5165]
[1736152339672,9.16875374,214.61,214.54,9.16875374]
[1736152339871,9.16875374,214.63,214.56,9.16875374]
[1736152340161,2.12,214.64,214.59,9.16875374]
[1736152340848,2.12,214.65,214.59,9.16875374]
[1736152341539,9.16875374,214.66,214.59,9.16875374]
[1736152341742,2.12,214.65,214.59,9.16875374]
[1736152341950,9.16875374,214.64,214.54,62.85181744]
[1736152342268,9.16875374,214.64,214.57,9.16875374]
[1736152342950,9.16875374,214.64,214.58,9.16875374]
[1736152343564,9.16875374,214.64,214.57,9.16875374]
[1736152343953,9.16875374,214.63,214.56,9.16875374]
[1736152344652,9.16875374,214.62,214.55,9.16875374]
[1736152344972,2.12,214.65,214.56,9.16875374]
[1736152345140,9.16875374,214.63,214.56,9.16875374]
[1736152345486,9.16875374,214.62,214.56,9.16875374]
[1736152346049,9.16875374,214.6,214.53,1.5165]
[1736152346271,9.16875374,214.6,214.53,9.16875374]
[1736152346857,9.16875374,214.61,214.54,9.16875374]
[1736152347679,9.16875374,214.62,214.55,9.16875374]
[1736152347866,9.16875374,214.64,214.57,9.16875374]
[1736152349260,9.16875374,214.63,214.51,12.35296673]
[1736152349464,9.16875374,214.62,214.55,9.16875374]
[1736152349853,9.16875374,214.62,214.51,12.35296673]
[1736152349854,9.16875374,214.63,214.56,9.16875374]
[1736152354590,9.16875374,214.62,214.55,9.16875374]
[1736152354967,9.16875374,214.61,214.51,62.85296673]
[1736152355267,9.16875374,214.61,214.54,9.16875374]
[1736152355470,9.16875374,214.6,214.54,9.16875374]
[1736152355662,9.16875374,214.61,214.54,9.16875374]
[1736152357079,9.16875374,214.6,214.53,9.16875374]
[1736152357466,9.16875374,214.6,214.54,9.16875374]
[1736152357772,9.16875374,214.61,214.54,9.16875374]
[1736152358292,9.16875374,214.6,214.53,9.16875374]
[1736152359995,9.16875374,214.59,214.52,9.16875374]
[1736152360503,9.16875374,214.6,214.53,9.16875374]
[1736152363292,9.16875374,214.59,214.52,9.16875374]
[1736152365173,11.30875374,214.59,214.52,9.16875374]
[1736152368300,2.14,214.59,214.54,9.16875374]
[1736152369182,11.30875374,214.59,214.53,9.16875374]
[1736152369383,2.14,214.59,214.53,9.16875374]
[1736152369973,2.14,214.59,214.54,9.16875374]
[1736152370776,9.16875374,214.61,214.49,2.35802644]
[1736152370777,2.14,214.6,214.55,9.16875374]
[1736152371997,2.14,214.6,214.54,9.16875374]
[1736152374977,11.30875374,214.6,214.53,9.16875374]
[1736152375910,11.30875374,214.6,214.49,52.85802644]
[1736152375911,11.30875374,214.6,214.52,9.16875374]
[1736152376418,9.16875374,214.59,214.52,9.16875374]
[1736152382307,9.16875374,214.55,214.49,1.659]
[1736152382608,9.16875374,214.52,214.44,1.6518]
[1736152382787,9.16875374,214.52,214.45,9.16875374]
[1736152382992,9.16875374,214.51,214.44,10.82055374]
[1736152383195,9.16875374,214.51,214.44,1.6518]
[1736152383384,9.16875374,214.51,214.44,10.82055374]
[1736152384407,2.1,214.53,214.44,10.82055374]
[1736152384594,9.16875374,214.51,214.44,10.82055374]
[1736152384793,9.16875374,214.51,214.45,9.16875374]
[1736152385104,2.1,214.53,214.46,9.16875374]
[1736152385281,11.26875374,214.53,214.47,9.16875374]
[1736152385608,11.26875374,214.53,214.46,9.16875374]
[1736152385909,9.16875374,214.52,214.44,1.6518]
[1736152386218,9.16875374,214.51,214.45,9.16875374]
[1736152387221,9.16875374,214.51,214.44,10.82055374]
[1736152387522,9.16875374,214.49,214.43,9.16875374]
[1736152388201,9.16875374,214.5,214.43,9.16875374]
[1736152388397,9.16875374,214.5,214.44,9.16875374]
[1736152388607,9.16875374,214.49,214.43,9.16875374]
[1736152388913,9.16875374,214.49,214.42,9.16875374]
[1736152389830,9.16875374,214.44,214.4,0.05]
[1736152390790,2.1,214.46,214.4,0.05]
[1736152390989,9.16875374,214.45,214.4,0.05]
[1736152391204,9.16875374,214.44,214.4,0.05]
[1736152391716,11.26875374,214.43,214.4,0.05]
[1736152392309,32.94563774,214.41,214.4,0.05]
[1736152394598,9.16875374,214.42,214.4,0.05]
[1736152394806,2.1,214.41,214.4,0.05]
[1736152395005,11.26875374,214.41,214.4,0.05]
[1736152395593,2.1,214.41,214.4,0.05]
[1736152400545,1.586,214.48,214.4,0.05]
[1736152400701,1.5343,214.53,214.43,9.16875374]
[1736152400905,11.26875374,214.49,214.43,9.16875374]
[1736152401628,2.1,214.49,214.43,9.16875374]
[1736152402036,11.26875374,214.49,214.43,9.16875374]
[1736152402444,2.1,214.49,214.43,9.16875374]
[1736152402746,2.1,214.49,214.44,9.16875374]
[1736152403110,1.6423,214.58,214.46,9.16875374]
[1736152403434,9.16875374,214.51,214.42,62.1593]
[1736152403632,9.16875374,214.51,214.44,9.16875374]
[1736152404448,9.16875374,214.52,214.45,9.16875374]
[1736152405038,9.16875374,214.53,214.46,9.16875374]
[1736152405334,9.16875374,214.53,214.42,51.19933832]
[1736152405335,9.16875374,214.52,214.45,9.16875374]
[1736152407110,9.16875374,214.52,214.44,9.16875374]
[1736152408135,9.16875374,214.52,214.45,9.16875374]
[1736152408649,9.16875374,214.52,214.44,9.16875374]
[1736152410037,20.0,214.56,214.46,9.16875374]
[1736152410340,9.16875374,214.54,214.47,9.16875374]
[1736152410525,9.16875374,214.53,214.46,9.16875374]
[1736152411256,9.16875374,214.54,214.47,9.16875374]
[1736152411753,9.16875374,214.53,214.46,9.16875374]
[1736152413738,11.24875374,214.54,214.47,9.16875374]
[1736152414254,9.16875374,214.53,214.47,9.16875374]
[1736152414441,9.16875374,214.52,214.45,9.16875374]
[1736152415045,9.16875374,214.53,214.46,9.16875374]
[1736152415949,9.16875374,214.52,214.44,9.16875374]
[1736152416544,9.16875374,214.51,214.44,9.16875374]
[1736152416716,11.24875374,214.54,214.47,9.16875374]
[1736152416921,9.16875374,214.52,214.45,9.16875374]
[1736152417242,2.08,214.54,214.42,11.6591]
[1736152417243,9.16875374,214.51,214.44,9.16875374]
[1736152420917,9.16875374,214.47,214.4,0.05]
[1736152421255,9.16875374,214.43,214.4,0.05]
[1736152421627,23.776884,214.46,214.4,0.05]
[1736152421628,9.16875374,214.42,214.4,0.05]
[1736152422552,9.16875374,214.41,214.4,0.05]
[1736152426136,32.94563774,214.41,214.4,0.05]
[1736152449355,23.776884,214.41,214.4,0.05]
[1736152449654,34.98563774,214.41,214.4,0.05]
[1736152456185,23.776884,214.4,214.3,9.75335374]
[1736152456354,9.16875374,214.35,214.3,0.5846]
[1736152456558,11.20875374,214.34,214.26,6.6653]
[1736152456759,9.16875374,214.33,214.27,9.16875374]
[1736152456983,9.16875374,214.33,214.26,15.83405374]
[1736152457480,11.20875374,214.34,214.27,9.16875374]
[1736152457687,11.20875374,214.34,214.28,9.16875374]
[1736152458057,11.20875374,214.34,214.27,9.16875374]
[1736152458375,9.16875374,214.32,214.26,6.6653]
[1736152459295,9.16875374,214.33,214.26,15.83405374]
[1736152459483,9.16875374,214.31,214.26,6.6653]
[1736152459673,9.16875374,214.3,214.26,6.6653]
[1736152460559,9.16875374,214.29,214.22,9.16875374]
[1736152460765,9.16875374,214.27,214.2,9.16875374]
[1736152461075,9.16875374,214.27,214.21,9.16875374]
[1736152461483,9.16875374,214.28,214.21,9.16875374]
[1736152461797,9.16875374,214.28,214.18,13.95183309]
[1736152461994,9.16875374,214.27,214.18,13.95183309]
[1736152462171,23.776884,214.33,214.18,13.95183309]
[1736152462374,9.16875374,214.28,214.21,9.16875374]
[1736152462890,9.16875374,214.29,214.22,9.16875374]
[1736152464901,9.16875374,214.29,214.23,9.16875374]
[1736152465471,9.16875374,214.29,214.18,13.95183309]
[1736152465783,9.16875374,214.29,214.22,9.16875374]
[1736152465997,9.16875374,214.29,214.23,9.16875374]
[1736152466673,9.16875374,214.3,214.23,9.16875374]
[1736152467978,9.16875374,214.3,214.24,9.16875374]
[1736152469508,9.16875374,214.3,214.18,64.45183309]
[1736152469509,2.04,214.32,214.27,9.16875374]
[1736152470412,9.16875374,214.34,214.27,9.16875374]
[1736152470711,2.04,214.33,214.27,9.16875374]
[1736152471005,9.16875374,214.34,214.27,9.16875374]
[1736152471205,2.04,214.33,214.28,9.16875374]
[1736152471385,2.04,214.33,214.29,9.16875374]
[1736152471586,2.04,214.4,214.32,9.16875374]
[1736152471905,9.16875374,214.39,214.32,9.16875374]
[1736152472110,9.16875374,214.4,214.33,9.16875374]
[1736152472685,2.04,214.41,214.33,9.16875374]
[1736152472893,2.04,214.41,214.34,9.16875374]
[1736152473085,20.0,214.42,214.34,9.16875374]
[1736152473289,9.16875374,214.41,214.34,9.16875374]
[1736152473512,9.16875374,214.37,214.22,62.17]
[1736152473713,9.16875374,214.37,214.3,9.16875374]
[1736152474208,9.16875374,214.38,214.31,9.16875374]
[1736152474386,9.16875374,214.37,214.3,9.16875374]
[1736152475090,9.16875374,214.38,214.31,9.16875374]
[1736152475885,9.16875374,214.37,214.3,9.16875374]
[1736152478011,9.16875374,214.38,214.31,9.16875374]
[1736152478506,9.16875374,214.38,214.25,70.7471717]
[1736152478701,9.16875374,214.38,214.3,9.16875374]
[1736152478885,9.16875374,214.38,214.31,9.16875374]
[1736152479189,9.16875374,214.39,214.32,9.16875374]
[1736152481114,9.16875374,214.4,214.33,9.16875374]
[1736152481316,9.16875374,214.39,214.32,9.16875374]
[1736152481518,9.16875374,214.39,214.28,12.36662252]
[1736152481519,9.16875374,214.38,214.31,9.16875374]
[1736152483413,2.04,214.42,214.34,9.16875374]
[1736152483626,9.16875374,214.43,214.36,9.16875374]
[1736152483987,9.16875374,214.42,214.35,9.16875374]
[1736152484515,9.16875374,214.44,214.37,9.16875374]
[1736152485106,2.04,214.45,214.37,9.16875374]
[1736152485415,11.20875374,214.45,214.37,9.16875374]
[1736152485721,9.16875374,214.44,214.37,9.16875374]
[1736152486631,9.16875374,214.42,214.32,59.35251817]
[1736152486799,9.16875374,214.42,214.35,9.16875374]
[1736152487126,2.04,214.45,214.36,9.86834516]
[1736152487305,9.16875374,214.44,214.36,9.86834516]
[1736152487493,9.16875374,214.44,214.36,9.16875374]
[1736152488393,9.16875374,214.44,214.37,9.16875374]
[1736152491309,9.16875374,214.45,214.37,9.16875374]
[1736152492801,9.16875374,214.45,214.38,9.16875374]
[1736152493934,9.16875374,214.45,214.37,9.16875374]
[1736152494231,9.16875374,214.44,214.37,9.16875374]
[1736152495635,9.16875374,214.45,214.38,9.16875374]
[1736152496128,11.20875374,214.48,214.4,9.16875374]
[1736152496630,9.16875374,214.47,214.4,9.16875374]
[1736152497525,9.16875374,214.48,214.4,9.16875374]
[1736152497832,25.816884,214.5,214.4,9.16875374]
[1736152498151,9.16875374,214.48,214.37,0.69944019]
[1736152498312,9.16875374,214.47,214.4,9.16875374]
[1736152500244,23.776884,214.5,214.4,9.16875374]
[1736152500549,9.16875374,214.46,214.39,9.16875374]
[1736152501948,9.16875374,214.47,214.4,9.16875374]
[1736152502147,9.16875374,214.44,214.37,51.19944019]
[1736152502318,9.16875374,214.44,214.37,59.66875374]
[1736152503049,9.16875374,214.42,214.37,50.5]
[1736152503349,9.16875374,214.39,214.32,9.16875374]
[1736152503526,9.16875374,214.38,214.28,51.19973779]
[1736152503735,9.16875374,214.37,214.3,9.16875374]
[1736152504134,9.16875374,214.39,214.32,9.16875374]
[1736152504339,9.16875374,214.38,214.31,9.16875374]
[1736152504553,9.16875374,214.39,214.32,9.16875374]
[1736152504853,9.16875374,214.39,214.33,9.16875374]
[1736152505152,9.16875374,214.4,214.33,9.16875374]
[1736152505452,11.20875374,214.41,214.34,9.16875374]
[1736152505966,11.20875374,214.41,214.35,9.16875374]
[1736152506256,2.04,214.41,214.35,9.16875374]
[1736152506440,2.04,214.41,214.36,9.16875374]
[1736152507043,2.04,214.41,214.35,9.16875374]
[1736152507434,9.16875374,214.4,214.33,9.16875374]
[1736152509156,9.16875374,214.35,214.29,9.16875374]
[1736152509731,9.16875374,214.33,214.26,9.16875374]
[1736152509930,9.16875374,214.34,214.27,9.16875374]
[1736152511247,9.16875374,214.3,214.24,9.16875374]
[1736152511455,11.20875374,214.3,214.24,9.16875374]
[1736152511635,11.20875374,214.3,214.25,9.16875374]
[1736152511636,2.04,214.3,214.25,9.16875374]
[1736152512054,2.04,214.3,214.26,9.16875374]
[1736152512230,2.04,214.3,214.25,9.16875374]
[1736152512750,2.04,214.3,214.26,9.16875374]
[1736152513051,2.04,214.3,214.28,9.16875374]
[1736152513236,2.04,214.3,214.21,59.1194909]
[1736152513437,2.04,214.3,214.27,9.16875374]
[1736152514565,9.16875374,214.28,214.21,50.5]
[1736152514734,9.16875374,214.27,214.2,9.16875374]
[1736152515147,9.16875374,214.25,214.18,9.16875374]
[1736152515358,9.16875374,214.25,214.16,2.22213818]
[1736152515559,23.776884,214.29,214.19,9.16875374]
[1736152515738,23.776884,214.29,214.21,9.16875374]
[1736152515940,9.16875374,214.28,214.22,9.16875374]
[1736152517859,9.16875374,214.28,214.21,9.16875374]
[1736152519164,2.04,214.28,214.24,9.16875374]
[1736152519347,2.04,214.32,214.26,9.16875374]
[1736152519672,2.04,214.32,214.27,9.16875374]
[1736152520858,2.04,214.32,214.26,9.16875374]
[1736152521889,2.04,214.32,214.27,9.16875374]
[1736152522168,1.5878,214.37,214.29,9.16875374]
[1736152522370,1.5878,214.37,214.31,9.16875374]
[1736152522371,2.04,214.36,214.31,9.16875374]
[1736152522574,2.04,214.36,214.28,0.69990978]
[1736152522575,2.04,214.36,214.32,9.16875374]
[1736152522773,2.04,214.36,214.31,9.16875374]
[1736152523374,2.04,214.36,214.3,9.16875374]
[1736152524056,11.20875374,214.36,214.3,9.16875374]
[1736152524354,2.04,214.36,214.3,9.16875374]
[1736152525691,2.04,214.36,214.31,9.16875374]
[1736152526047,2.04,214.36,214.28,0.69974602]
[1736152526048,2.04,214.36,214.3,9.16875374]
[1736152528263,9.16875374,214.35,214.26,50.5]
[1736152528464,9.16875374,214.35,214.28,9.16875374]
[1736152528664,9.16875374,214.34,214.27,9.16875374]
[1736152529277,9.16875374,214.35,214.28,9.16875374]
[1736152529477,11.20875374,214.36,214.29,9.86861819]
[1736152529688,11.20875374,214.36,214.29,9.16875374]
[1736152531185,9.16875374,214.36,214.29,9.16875374]
[1736152531375,11.20875374,214.36,214.29,9.16875374]
[1736152531760,2.04,214.36,214.3,9.16875374]
[1736152535654,9.16875374,214.35,214.27,51.19980762]
[1736152535986,9.16875374,214.34,214.28,9.16875374]
[1736152536189,9.16875374,214.35,214.28,9.16875374]
[1736152537177,9.16875374,214.34,214.28,9.16875374]
[1736152537475,9.16875374,214.34,214.27,59.66875374]
[1736152537674,2.04,214.36,214.27,59.66875374]
[1736152537675,9.16875374,214.33,214.27,50.5]
[1736152538170,9.16875374,214.32,214.27,50.5]
[1736152539604,9.16875374,214.32,214.25,9.16875374]
[1736152540401,9.16875374,214.33,214.26,9.16875374]
[1736152540895,9.16875374,214.34,214.28,9.16875374]
[1736152541078,9.16875374,214.35,214.28,9.16875374]
[1736152541701,9.16875374,214.34,214.28,9.16875374]
[1736152541902,9.16875374,214.35,214.28,9.16875374]
[1736152542397,2.04,214.37,214.3,9.16875374]
[1736152542606,11.20875374,214.37,214.3,9.16875374]
[1736152542974,2.04,214.37,214.31,9.16875374]
[1736152543384,9.16875374,214.38,214.31,9.16875374]
[1736152543385,11.20875374,214.38,214.31,9.16875374]
[1736152543672,2.04,214.38,214.33,9.16875374]
[1736152543890,9.16875374,214.41,214.34,9.16875374]
[1736152544081,9.16875374,214.41,214.28,87.87472423]
[1736152544082,11.20875374,214.4,214.33,9.16875374]
[1736152544604,1.5222,214.42,214.34,9.16875374]
[1736152544806,1.5222,214.42,214.36,9.16875374]
[1736152545111,1.5222,214.42,214.33,50.5]
[1736152545112,11.20875374,214.43,214.34,0.69957334]
[1736152545287,9.16875374,214.42,214.35,9.16875374]
[1736152545491,9.16875374,214.41,214.34,9.16875374]
[1736152545809,9.16875374,214.4,214.33,59.66875374]
[1736152546281,9.16875374,214.4,214.34,9.16875374]
[1736152546689,9.16875374,214.4,214.33,59.66875374]
[1736152547387,9.16875374,214.37,214.3,9.16875374]
[1736152547710,9.16875374,214.37,214.29,0.69967872]
[1736152547711,9.16875374,214.35,214.28,9.16875374]
[1736152548007,9.16875374,214.34,214.27,59.66875374]
[1736152548577,9.16875374,214.33,214.26,9.16875374]
[1736152548773,9.16875374,214.32,214.25,9.16875374]
[1736152549384,9.16875374,214.31,214.22,1.5129]
[1736152549584,9.16875374,214.3,214.23,9.16875374]
[1736152550477,9.16875374,214.29,214.22,9.16875374]
[1736152550683,9.16875374,214.28,214.2,0.700041]
[1736152550903,9.16875374,214.27,214.2,9.16875374]
[1736152551719,9.16875374,214.26,214.19,9.16875374]
[1736152553323,9.16875374,214.27,214.19,9.16875374]
[1736152555521,9.16875374,214.27,214.17,2.26456231]
[1736152555522,9.16875374,214.26,214.17,0.70016231]
[1736152555751,9.16875374,214.24,214.16,0.70017259]
[1736152555908,9.16875374,214.25,214.18,9.16875374]
[1736152558322,9.16875374,214.26,214.19,9.16875374]
[1736152560406,6.6328,214.27,214.19,9.16875374]
[1736152560733,15.80155374,214.27,214.2,9.16875374]
[1736152560925,2.04,214.28,214.23,9.16875374]
[1736152561618,1.5227,214.31,214.25,9.16875374]
[1736152561817,1.5227,214.31,214.26,9.16875374]
[1736152563733,1.5227,214.31,214.25,9.16875374]
[1736152565039,10.69145374,214.31,214.24,9.16875374]
[1736152566019,1.5227,214.31,214.25,9.16875374]
[1736152567236,6.1315,214.37,214.28,9.16875374]
[1736152567237,1.6482,214.36,214.28,9.16875374]
[1736152567427,1.6482,214.36,214.31,9.16875374]
[1736152567615,7.7346,214.43,214.32,9.16875374]
[1736152567933,9.16875374,214.39,214.32,9.16875374]
[1736152569532,9.16875374,214.4,214.33,9.16875374]
[1736152571044,9.16875374,214.38,214.26,62.86763576]
[1736152571222,9.16875374,214.36,214.29,9.16875374]
[1736152571428,9.16875374,214.34,214.27,9.16875374]
[1736152571944,9.16875374,214.33,214.26,9.16875374]
[1736152572440,9.16875374,214.33,214.27,9.16875374]
[1736152572746,9.16875374,214.35,214.23,53.23980598]
[1736152572941,9.16875374,214.35,214.28,9.16875374]
[1736152574341,2.04,214.42,214.31,9.16875374]
[1736152574342,9.16875374,214.38,214.31,9.16875374]
[1736152574552,9.16875374,214.38,214.32,9.16875374]
[1736152574754,9.16875374,214.38,214.31,9.16875374]
[1736152575136,9.16875374,214.39,214.32,9.16875374]
[1736152576461,9.16875374,214.37,214.3,9.16875374]
[1736152577046,14.38022745,214.37,214.29,14.38022745]
[1736152577760,14.38022745,214.37,214.3,14.38022745]
[1736152578136,14.38022745,214.38,214.31,14.38022745]
[1736152578662,14.38022745,214.39,214.32,14.38022745]
[1736152578862,14.38022745,214.38,214.31,14.38022745]
[1736152579447,14.38022745,214.38,214.3,14.38022745]
[1736152580961,14.38022745,214.39,214.32,14.38022745]
[1736152581943,14.38022745,214.4,214.32,14.38022745]
[1736152582141,2.04,214.42,214.32,14.38022745]
[1736152582142,14.38022745,214.39,214.32,14.38022745]
[1736152584566,14.38022745,214.38,214.31,14.38022745]
[1736152586658,14.38022745,214.38,214.3,14.38022745]
[1736152586973,14.38022745,214.39,214.32,14.38022745]
[1736152587164,14.38022745,214.4,214.33,14.38022745]
[1736152590373,14.38022745,214.4,214.32,14.38022745]
[1736152590874,14.38022745,214.39,214.32,14.38022745]
[1736152591995,14.38022745,214.4,214.32,14.38022745]
[1736152592157,2.04,214.42,214.33,14.38022745]
[1736152592158,14.38022745,214.41,214.33,14.38022745]
[1736152598285,13.2751,214.49,214.35,64.88022745]
[1736152598477,13.2751,214.49,214.37,14.38022745]
[1736152598478,2.04,214.44,214.37,14.38022745]
[1736152598682,16.42022745,214.44,214.37,14.38022745]
[1736152598976,14.38022745,214.43,214.36,14.38022745]
[1736152599291,9.19761733,214.43,214.36,9.19761733]
[1736152600086,8.19761733,214.43,214.36,9.19761733]
[1736152600256,9.19761733,214.44,214.37,9.19761733]
[1736152601685,9.19761733,214.43,214.36,9.19761733]
[1736152601888,9.19761733,214.41,214.34,50.5]
[1736152602185,9.19761733,214.41,214.34,59.69761733]
[1736152602571,9.19761733,214.41,214.34,9.19761733]
[1736152602887,9.19761733,214.4,214.33,9.19761733]
[1736152604670,9.19761733,214.39,214.32,9.19761733]
[1736152606279,9.19761733,214.4,214.34,9.19761733]
[1736152606883,9.19761733,214.4,214.33,9.19761733]
[1736152607370,11.23761733,214.41,214.34,9.19761733]
[1736152607773,9.19761733,214.4,214.33,9.19761733]
[1736152609587,9.19761733,214.39,214.3,51.19956105]
[1736152609783,9.19761733,214.38,214.3,51.19956105]
[1736152610081,9.19761733,214.38,214.32,9.19761733]
[1736152610790,9.19761733,214.39,214.32,9.19761733]
[1736152612889,9.19761733,214.39,214.33,9.19761733]
[1736152619602,9.19761733,214.4,214.33,9.19761733]
[1736152621409,13.275,214.49,214.37,9.19761733]
[1736152621583,9.19761733,214.44,214.37,9.19761733]
[1736152623379,9.19761733,214.44,214.38,9.89713271]
[1736152624012,9.19761733,214.45,214.38,9.89713271]
[1736152625288,11.23761733,214.46,214.39,9.19761733]
[1736152625693,2.04,214.46,214.39,9.19761733]
[1736152625897,11.23761733,214.46,214.39,9.19761733]
[1736152626891,9.19761733,214.45,214.38,9.19761733]
[1736152627202,9.19761733,214.44,214.37,9.19761733]
[1736152627400,2.04,214.46,214.38,9.19761733]
[1736152627712,11.23761733,214.46,214.39,9.19761733]
[1736152628096,9.19761733,214.45,214.38,9.19761733]
[1736152628605,9.19761733,214.44,214.37,9.19761733]
[1736152628793,9.19761733,214.43,214.36,9.19761733]
[1736152628999,9.19761733,214.41,214.34,9.19761733]
[1736152629817,9.19761733,214.4,214.33,60.39726398]
[1736152630323,9.19761733,214.39,214.33,59.69761733]
[1736152632421,9.19761733,214.39,214.33,9.19761733]
[1736152633223,9.19761733,214.41,214.34,9.19761733]
[1736152633592,9.19761733,214.42,214.35,9.89725885]
[1736152634714,11.23761733,214.43,214.36,9.19761733]
[1736152636413,9.19761733,214.43,214.36,9.19761733]
[1736152636591,9.19761733,214.42,214.32,0.69955487]
[1736152636915,9.19761733,214.41,214.34,9.19761733]
[1736152637087,2.04,214.44,214.34,9.19761733]
[1736152637286,2.04,214.44,214.35,9.19761733]
[1736152637487,9.19761733,214.42,214.35,9.19761733]
[1736152637894,9.19761733,214.41,214.34,9.19761733]
[1736152638518,9.19761733,214.41,214.34,59.69761733]
[1736152639720,9.19761733,214.42,214.35,9.19761733]
[1736152639895,9.19761733,214.43,214.36,9.19761733]
[1736152641997,11.23761733,214.44,214.36,9.19761733]
[1736152642916,1.6191,214.49,214.4,9.19761733]
[1736152643127,10.81671733,214.49,214.42,9.19761733]
[1736152643306,9.19761733,214.47,214.4,9.19761733]
[1736152643507,9.19761733,214.46,214.38,9.19761733]
[1736152643818,9.19761733,214.46,214.39,9.19761733]
[1736152644520,9.19761733,214.47,214.4,9.19761733]
[1736152646419,9.19761733,214.46,214.39,9.19761733]
[1736152647327,2.04,214.48,214.39,9.19761733]
[1736152647630,9.19761733,214.47,214.4,9.89711126]
[1736152648041,11.23761733,214.48,214.41,9.19761733]
[1736152648413,2.04,214.48,214.42,9.89701889]
[1736152648728,1.6126,214.54,214.44,9.19761733]
[1736152648905,9.19761733,214.51,214.44,9.19761733]
[1736152651124,9.19761733,214.5,214.43,9.19761733]
[1736152651338,9.19761733,214.49,214.42,60.39701889]
[1736152652406,9.19761733,214.5,214.43,9.19761733]
[1736152653443,9.19761733,214.5,214.43,59.69761733]
[1736152660504,9.19761733,214.48,214.43,50.5]
[1736152661746,9.19761733,214.47,214.41,51.19937793]
[1736152663149,9.19761733,214.46,214.41,50.5]
[1736152663339,9.19761733,214.44,214.41,50.5]
[1736152663629,9.19761733,214.45,214.41,50.5]
[1736152665431,9.19761733,214.45,214.39,9.19761733]
[1736152670734,9.19761733,214.45,214.38,9.19761733]
[1736152670935,9.19761733,214.42,214.37,1.5948]
[1736152673340,9.19761733,214.43,214.37,1.5948]